fUSD/lending_fUSD_20250804
["ID","MTS","AMOUNT","RATE_DAILY","PERIOD"]
[377253964,1754306843993,-500.0,0.00047999,120]
[377253965,1754306844022,-500.0,0.00047999,120]
[377253966,1754306844051,-590.71309864,0.00047999,120]
[377253967,1754306844082,-50000.0,0.00048,48]
[377253968,1754306844111,-335182.15480529,0.00048,120]
[377253969,1754306844139,-288.65402452,0.00048,120]
[377253970,1754306844166,-285.42171584,0.00048,120]
[377253971,1754306844194,-1000.0,0.00048,120]
[377253972,1754306844223,-151.0,0.00048,120]
[377253973,1754306844251,-951.8102,0.00048,30]
[377253974,1754306844281,-505.0,0.00048047,10]
[377253975,1754306844310,-202.03,0.000481,120]
[377253976,1754306844339,-152.0,0.000481,120]
[377253977,1754306844372,-888.0,0.0004817,120]
[377253978,1754306844402,-151.0,0.000484,120]
[377253979,1754306844437,-888.0,0.00048444,120]
[377253980,1754306844468,-888.0,0.00048444,120]
[377253981,1754306844500,-150.0,0.00048448,120]
[377253982,1754306844684,-1083.0,0.0004845,30]
[377253983,1754306844713,-4478.29307,0.00048465,14]
[377253984,1754306844744,-888.0,0.00048497,90]
[377253985,1754306844775,-888.0,0.00048499,120]
[377253986,1754306844805,-25426.91,0.000485,120]
[377253987,1754306844834,-600000.0,0.000485,120]
[377253988,1754306844865,-888.0,0.000485,120]
[377253989,1754306844898,-178.33,0.00048766,120]
[377253990,1754306844928,-547.69037182,0.00048774,120]
[377253991,1754306844956,-19335.41052194,0.000488,120]
[377253992,1754306844986,-21178.93530151,0.000488,120]
[377253993,1754306845013,-266.0,0.000488,120]
[377253994,1754306845039,-238.57624203,0.0004888,120]
[377253995,1754306845066,-1203.92243298,0.000489,120]
[377253996,1754306845093,-212.0,0.0004892,30]
[377253997,1754306845120,-208.0,0.0004892,30]
[377253998,1754306845146,-204.0,0.0004892,30]
[377253999,1754306845174,-207.0,0.0004892,30]
[377254000,1754306845201,-1500.0,0.0004896,47]
[377254001,1754306845230,-5000.0,0.0004897,120]
[377254002,1754306845261,-50000.0,0.00049,49]
[377254003,1754306845289,-50000.0,0.00049,59]
[377254004,1754306845317,-1000.0,0.00049,120]
[377254005,1754306845345,-5000.54562216,0.00049,120]
[377254006,1754306845372,-771.72192648,0.00049,30]
[377254007,1754306845399,-500.0,0.00049,120]
[377254008,1754306845426,-679375.0,0.00049,30]
[377254009,1754306845455,-1000.0,0.00049,120]
[377254010,1754306845482,-1000000.0,0.00049,120]
[377254011,1754306845512,-150.0,0.00049041,32]
[377254012,1754306845540,-152.0,0.000491,120]
[377254013,1754306845570,-999.0,0.00049178,120]
[377254014,1754306845602,-505.0,0.00049242,12]
[377254015,1754306845629,-300.0,0.00049315,30]
[377254016,1754306845656,-310.0,0.00049315,30]
[377254017,1754306845684,-500.0,0.00049315,120]
[377254018,1754306845711,-500.0,0.00049315,120]
[377254019,1754306845740,-500.0,0.00049315,120]
[377254020,1754306845766,-500.0,0.00049315,120]
[377254021,1754306845795,-500.0,0.00049315,120]
[377254022,1754306845822,-150.0,0.00049315,120]
[377254023,1754306845850,-150.15980536,0.00049315,120]
[377254024,1754306845878,-500.0,0.00049315,120]
[377254025,1754306845905,-150.0,0.00049315,120]
[377254026,1754306845933,-500.0,0.00049315,120]
[377254027,1754306845961,-150.0,0.00049315,120]
[377254028,1754306845988,-150.0,0.00049315,120]
[377254029,1754306846016,-150.0,0.00049315,120]
[377254030,1754306846043,-156.80895068,0.00049315,120]
[377254031,1754306846070,-150.0,0.00049315,120]
[377254032,1754306846097,-500.0,0.00049315,120]
[377254033,1754306846123,-500.0,0.00049315,120]
[377254034,1754306846149,-200.0,0.00049315,120]
[377254035,1754306846177,-182.0,0.00049315,60]
[377254036,1754306846203,-182.0,0.00049315,60]
[377254037,1754306846230,-182.0,0.00049315,60]
[377254038,1754306846258,-182.0,0.00049315,60]
[377254039,1754306846285,-182.0,0.00049315,60]
[377254040,1754306846311,-182.0,0.00049315,60]
[377254041,1754306846337,-182.0,0.00049315,60]
[377254042,1754306846363,-182.0,0.00049315,60]
[377254043,1754306846390,-182.0,0.00049315,60]
[377254044,1754306846416,-182.0,0.00049315,60]
[377254045,1754306846443,-182.0,0.00049315,60]
[377254046,1754306846471,-182.0,0.00049315,60]
[377254047,1754306846501,-182.0,0.00049315,60]
[377254048,1754306846529,-182.0,0.00049315,60]
[377254049,1754306846557,-182.0,0.00049315,60]
[377254050,1754306846590,-182.0,0.00049315,60]
[377254051,1754306846618,-182.0,0.00049315,60]
[377254052,1754306846649,-182.0,0.00049315,60]
[377254053,1754306846676,-182.0,0.00049315,60]
[377254054,1754306846704,-182.0,0.00049315,60]
[377254055,1754306846733,-182.0,0.00049315,60]
[377254056,1754306846761,-182.0,0.00049315,60]
[377254057,1754306846790,-182.0,0.00049315,60]
[377254058,1754306846819,-182.0,0.00049315,60]
[377254059,1754306846848,-182.0,0.00049315,60]
[377254060,1754306846876,-182.0,0.00049315,60]
[377254061,1754306846905,-182.0,0.00049315,60]
[377254062,1754306846935,-182.0,0.00049315,60]
[377254063,1754306846964,-182.0,0.00049315,60]
[377254064,1754306846993,-182.0,0.00049315,60]
[377254065,1754306847021,-182.0,0.00049315,60]
[377254066,1754306847048,-182.0,0.00049315,60]
[377254067,1754306847076,-182.0,0.00049315,60]
[377254068,1754306847104,-182.0,0.00049315,60]
[377254069,1754306847132,-182.0,0.00049315,60]
[377254070,1754306847161,-182.0,0.00049315,60]
[377254071,1754306847188,-182.0,0.00049315,60]
[377254072,1754306847216,-182.0,0.00049315,60]
[377254073,1754306847243,-182.0,0.00049315,60]
[377254074,1754306847272,-182.0,0.00049315,60]
[377254075,1754306847301,-182.0,0.00049315,60]
[377254076,1754306847329,-182.0,0.00049315,60]
[377254077,1754306847358,-182.0,0.00049315,60]
[377254078,1754306847386,-182.0,0.00049315,60]
[377254079,1754306847414,-182.0,0.00049315,60]
[377254080,1754306847441,-182.0,0.00049315,60]
[377254081,1754306847467,-182.0,0.00049315,60]
[377254082,1754306847493,-182.0,0.00049315,60]
[377254083,1754306847520,-182.0,0.00049315,60]
[377254084,1754306847547,-182.0,0.00049315,60]
[377254085,1754306847577,-182.0,0.00049315,60]
[377254086,1754306847611,-182.0,0.00049315,60]
[377254087,1754306847642,-182.0,0.00049315,60]
[377254088,1754306847672,-182.0,0.00049315,60]
[377254089,1754306847702,-182.0,0.00049315,60]
[377254090,1754306847730,-182.0,0.00049315,60]
[377254091,1754306847759,-182.0,0.00049315,60]
[377254092,1754306847790,-182.0,0.00049315,60]
[377254093,1754306847820,-182.0,0.00049315,60]
[377254094,1754306847849,-182.0,0.00049315,60]
[377254095,1754306847878,-182.0,0.00049315,60]
[377254096,1754306847907,-182.0,0.00049315,60]
[377254097,1754306847936,-182.0,0.00049315,60]
[377254098,1754306847966,-182.0,0.00049315,60]
[377254099,1754306847995,-182.0,0.00049315,60]
[377254100,1754306848183,-182.0,0.00049315,60]
[377254102,1754306848213,-182.0,0.00049315,60]
[377254103,1754306848244,-182.0,0.00049315,60]
[377254104,1754306848274,-182.0,0.00049315,60]
[377254105,1754306848303,-182.0,0.00049315,60]
[377254106,1754306848333,-182.0,0.00049315,60]
[377254107,1754306848364,-182.0,0.00049315,60]
[377254108,1754306848393,-182.0,0.00049315,60]
[377254109,1754306848426,-182.0,0.00049315,60]
[377254110,1754306848455,-182.0,0.00049315,60]
[377254111,1754306848484,-182.0,0.00049315,60]
[377254112,1754306848513,-182.0,0.00049315,60]
[377254113,1754306848541,-182.0,0.00049315,60]
[377254114,1754306848570,-182.0,0.00049315,60]
[377254115,1754306848603,-182.0,0.00049315,60]
[377254116,1754306848635,-182.0,0.00049315,60]
[377254117,1754306848665,-182.0,0.00049315,60]
[377254118,1754306848696,-182.0,0.00049315,60]
[377254119,1754306848725,-182.0,0.00049315,60]
[377254120,1754306848756,-182.0,0.00049315,60]
[377254121,1754306848787,-182.0,0.00049315,60]
[377254122,1754306848818,-182.0,0.00049315,60]
[377254123,1754306848847,-182.0,0.00049315,60]
[377254124,1754306848877,-182.0,0.00049315,60]
[377254125,1754306848906,-182.0,0.00049315,60]
[377254126,1754306848934,-182.0,0.00049315,60]
[377254127,1754306848963,-182.0,0.00049315,60]
[377254128,1754306848994,-182.0,0.00049315,60]
[377254129,1754306849023,-182.0,0.00049315,60]
[377254130,1754306849052,-182.0,0.00049315,60]
[377254131,1754306849080,-182.0,0.00049315,60]
[377254132,1754306849109,-182.0,0.00049315,60]
[377254133,1754306849137,-153.0,0.00049315,60]
[377254134,1754306849165,-153.0,0.00049315,60]
[377254135,1754306849192,-153.0,0.00049315,60]
[377254136,1754306849234,-153.0,0.00049315,60]
[377254137,1754306849263,-153.0,0.00049315,60]
[377254138,1754306849292,-153.0,0.00049315,60]
[377254139,1754306849321,-153.0,0.00049315,60]
[377254140,1754306849349,-153.0,0.00049315,60]
[377254141,1754306849379,-153.0,0.00049315,60]
[377254142,1754306849408,-153.0,0.00049315,60]
[377254143,1754306849438,-1776.0,0.0004934,30]
[377254144,1754306849466,-370.0,0.00049371,120]
[377254145,1754306849494,-896908.45730369,0.00049396,120]
[377254146,1754306849524,-1000.0,0.00049399,30]
[377254147,1754306849554,-1500.0,0.0004944,47]
[377254148,1754306849587,-1776.0,0.00049467,120]
[377254149,1754306849616,-1717.0,0.0004947,30]
[377254150,1754306849646,-6508.31052078,0.000495,120]
[377254151,1754306849675,-649271.42565977,0.000495,120]
[377254153,1754306852238,299.15802066,0.0002301,120]
[377254156,1754306873894,-150.0,0.000347,30]
[377254157,1754306874196,-500.0,0.0004,120]
[377254158,1754306874295,-195.15457535,0.00040766,120]
[377254159,1754306874386,-2500.0,0.00041164,10]
[377254160,1754306874491,-1349.82929038,0.00041643,10]
[377254161,1754306874642,-1706.99408,0.00042465,14]
[377254162,1754306874822,-1400.21,0.00043835,120]
[377254163,1754306874851,-2039.61,0.00043835,120]
[377254164,1754306874880,-766.64,0.00043835,120]
[377254165,1754306874911,-1166.0,0.00043835,120]
[377254166,1754306874939,-1858.26,0.00043835,120]
[377254167,1754306874968,-451.12,0.00043835,120]
[377254168,1754306874996,-516.05,0.00043835,120]
[377254169,1754306875026,-576.4,0.00043835,120]
[377254171,1754306875231,-955.21,0.00043835,120]
[377254172,1754306875260,-1560.4,0.00043835,120]
[377254173,1754306875289,-1264.47,0.00043835,120]
[377254174,1754306875319,-1319.58,0.00043835,120]
[377254175,1754306875348,-185.25240248,0.00043835,120]
[377254176,1754306875378,-763.75,0.00043835,120]
[377254177,1754306875407,-462.11,0.00043835,120]
[377254178,1754306875437,-400.0,0.00043835,120]
[377254179,1754306875465,-3730.41,0.00043835,120]
[377254180,1754306875495,-585.53,0.00043835,120]
[377254181,1754306875524,-491.54,0.00043835,120]
[377254182,1754306875553,-700.29,0.00043835,120]
[377254183,1754306875583,-810.6,0.00043835,120]
[377254184,1754306875620,-944.3,0.00043835,120]
[377254185,1754306875649,-2054.28,0.00043835,120]
[377254186,1754306875679,-32828.96,0.00043835,120]
[377254187,1754306875711,-2164.55,0.00043835,120]
[377254188,1754306875741,-406.1,0.00043835,120]
[377254189,1754306875771,-400.0,0.00043835,120]
[377254190,1754306875801,-1542.06,0.00043835,120]
[377254191,1754306875833,-1224.12,0.00043835,120]
[377254192,1754306875862,-537.09,0.00043864,30]
[377254193,1754306875892,-537.09,0.00043864,30]
[377254194,1754306875921,-718.0,0.00043864,30]
[377254195,1754306875950,-537.09,0.00043864,30]
[377254196,1754306875983,-170.59,0.00043864,30]
[377254197,1754306876014,-1960.3,0.00044108,120]
[377254198,1754306876043,-400.0,0.00044108,120]
[377254199,1754306876072,-568.52,0.00044108,120]
[377254200,1754306876101,-677.08,0.00044108,120]
[377254201,1754306876129,-400.0,0.00044108,120]
[377254202,1754306876158,-610.74,0.00044108,120]
[377254203,1754306876186,-545.64,0.00044108,120]
[377254204,1754306876216,-1452.31,0.00044108,120]
[377254205,1754306876244,-500.47,0.00044108,120]
[377254206,1754306876273,-178.55227974,0.00044108,120]
[377254207,1754306876302,-984.57,0.00044108,120]
[377254208,1754306876331,-473.7,0.00044108,120]
[377254209,1754306876360,-549.01,0.00044108,120]
[377254210,1754306876389,-400.0,0.00044108,120]
[377254211,1754306876416,-3867.33,0.00044108,120]
[377254212,1754306876445,-1373.45,0.00044109,120]
[377254213,1754306876472,-1400.21,0.00044109,120]
[377254214,1754306876747,-2039.61,0.00044109,120]
[377254215,1754306876778,-766.64,0.00044109,120]
[377254216,1754306876810,-1166.0,0.00044109,120]
[377254217,1754306876840,-1858.26,0.00044109,120]
[377254218,1754306876869,-451.12,0.00044109,120]
[377254219,1754306876898,-516.05,0.00044109,120]
[377254220,1754306876926,-576.4,0.00044109,120]
[377254221,1754306876956,-955.21,0.00044109,120]
[377254222,1754306876985,-1560.4,0.00044109,120]
[377254223,1754306877013,-1264.47,0.00044109,120]
[377254224,1754306877042,-1319.58,0.00044109,120]
[377254225,1754306877069,-763.75,0.00044109,120]
[377254226,1754306877097,-462.11,0.00044109,120]
[377254227,1754306877126,-165.20386084,0.00044109,120]
[377254228,1754306877153,-3730.41,0.00044109,120]
[377254229,1754306877181,-585.53,0.00044109,120]
[377254230,1754306877208,-491.54,0.00044109,120]
[377254231,1754306877236,-700.29,0.00044109,120]
[377254232,1754306877264,-810.6,0.00044109,120]
[377254233,1754306877298,-944.3,0.00044109,120]
[377254234,1754306877342,-2054.28,0.00044109,120]
[377254235,1754306877371,-32828.96,0.00044109,120]
[377254236,1754306877401,-2164.55,0.00044109,120]
[377254237,1754306877427,-406.1,0.00044109,120]
[377254238,1754306877455,-400.0,0.00044109,120]
[377254239,1754306877482,-1542.06,0.00044109,120]
[377254240,1754306877509,-1224.12,0.00044109,120]
[377254241,1754306877537,-1960.3,0.00044382,120]
[377254242,1754306877565,-400.0,0.00044382,120]
[377254243,1754306877597,-568.52,0.00044382,120]
[377254244,1754306877625,-677.08,0.00044382,120]
[377254245,1754306877657,-400.0,0.00044382,120]
[377254246,1754306877692,-610.74,0.00044382,120]
[377254247,1754306877722,-545.64,0.00044382,120]
[377254248,1754306877753,-1452.31,0.00044382,120]
[377254249,1754306877783,-500.47,0.00044382,120]
[377254250,1754306877814,-984.57,0.00044382,120]
[377254251,1754306877843,-473.7,0.00044382,120]
[377254252,1754306877873,-549.01,0.00044382,120]
[377254253,1754306877903,-400.0,0.00044382,120]
[377254254,1754306877932,-3867.33,0.00044382,120]
[377254255,1754306877961,-1373.45,0.00044383,120]
[377254256,1754306877989,-1400.21,0.00044383,120]
[377254257,1754306878018,-2039.61,0.00044383,120]
[377254258,1754306878047,-766.64,0.00044383,120]
[377254259,1754306878076,-1166.0,0.00044383,120]
[377254260,1754306878103,-1858.26,0.00044383,120]
[377254261,1754306878130,-451.12,0.00044383,120]
[377254262,1754306878159,-516.05,0.00044383,120]
[377254263,1754306878187,-576.4,0.00044383,120]
[377254264,1754306878214,-955.21,0.00044383,120]
[377254265,1754306878243,-1560.4,0.00044383,120]
[377254266,1754306878273,-1319.58,0.00044383,120]
[377254267,1754306878301,-1264.47,0.00044383,120]
[377254268,1754306878330,-763.75,0.00044383,120]
[377254269,1754306878358,-462.11,0.00044383,120]
[377254270,1754306878386,-3730.41,0.00044383,120]
[377254271,1754306878414,-585.53,0.00044383,120]
[377254272,1754306878441,-491.54,0.00044383,120]
[377254273,1754306878469,-700.29,0.00044383,120]
[377254274,1754306878497,-810.6,0.00044383,120]
[377254275,1754306878525,-944.3,0.00044383,120]
[377254276,1754306878553,-2054.28,0.00044383,120]
[377254277,1754306878579,-32828.96,0.00044383,120]
[377254278,1754306878612,-2164.55,0.00044383,120]
[377254279,1754306879007,-406.1,0.00044383,120]
[377254280,1754306879038,-400.0,0.00044383,120]
[377254281,1754306879067,-1542.06,0.00044383,120]
[377254282,1754306879095,-1706.99408,0.00044465,14]
[377254283,1754306879125,-1960.3,0.00044656,120]
[377254284,1754306879155,-400.0,0.00044656,120]
[377254285,1754306879182,-568.52,0.00044656,120]
[377254286,1754306879211,-677.08,0.00044656,120]
[377254287,1754306879239,-400.0,0.00044656,120]
[377254288,1754306879268,-610.74,0.00044656,120]
[377254289,1754306879296,-545.64,0.00044656,120]
[377254290,1754306879324,-1452.31,0.00044656,120]
[377254291,1754306879353,-500.47,0.00044656,120]
[377254292,1754306879382,-984.57,0.00044656,120]
[377254293,1754306879411,-473.7,0.00044656,120]
[377254294,1754306879440,-549.01,0.00044656,120]
[377254295,1754306879469,-3867.33,0.00044656,120]
[377254296,1754306879499,-400.0,0.00044656,120]
[377254297,1754306879529,-1373.48,0.00044657,120]
[377254298,1754306879559,-1400.24321457,0.00044657,120]
[377254299,1754306879588,-2039.79,0.00044657,120]
[377254300,1754306879620,-766.77879617,0.00044657,120]
[377254301,1754306879650,-1166.03384503,0.00044657,120]
[377254302,1754306879678,-1858.48,0.00044657,120]
[377254303,1754306879707,-451.14,0.00044657,120]
[377254304,1754306879736,-516.20274657,0.00044657,120]
[377254305,1754306879762,-576.53,0.00044657,120]
[377254306,1754306879790,-955.39413731,0.00044657,120]
[377254307,1754306879819,-1560.4005815,0.00044657,120]
[377254308,1754306879849,-1319.63,0.00044657,120]
[377254309,1754306879878,-1264.59,0.00044657,120]
[377254310,1754306879908,-763.84104171,0.00044657,120]
[377254311,1754306879938,-462.11270473,0.00044657,120]
[377254312,1754306879966,-3730.57,0.00044657,120]
[377254313,1754306879996,-585.76283529,0.00044657,120]
[377254314,1754306880024,-491.58,0.00044657,120]
[377254315,1754306880054,-700.34,0.00044657,120]
[377254316,1754306880083,-810.72,0.00044657,120]
[377254317,1754306880111,-944.53280181,0.00044657,120]
[377254318,1754306880141,-2054.35431042,0.00044657,120]
[377254319,1754306880172,-32829.12,0.00044657,120]
[377254320,1754306880203,-2164.71,0.00044657,120]
[377254321,1754306880234,-406.30793468,0.00044657,120]
[377254322,1754306880266,-379.39488305,0.00044657,120]
[377254323,1754306880297,-1542.2186929,0.00044657,120]
[377254324,1754306880328,-1960.3,0.0004493,120]
[377254325,1754306880360,-400.0,0.0004493,120]
[377254326,1754306880392,-677.08,0.0004493,120]
[377254327,1754306880422,-400.0,0.0004493,120]
[377254328,1754306880451,-568.52,0.0004493,120]
[377254329,1754306880479,-610.74,0.0004493,120]
[377254330,1754306880508,-545.64,0.0004493,120]
[377254331,1754306880538,-1452.31,0.0004493,120]
[377254332,1754306880567,-500.47,0.0004493,120]
[377254333,1754306880597,-984.57,0.0004493,120]
[377254334,1754306880626,-473.7,0.0004493,120]
[377254335,1754306880657,-549.01,0.0004493,120]
[377254336,1754306880688,-3867.33,0.0004493,120]
[377254337,1754306880718,-400.0,0.0004493,120]
[377254338,1754306880746,-207.0,0.00045,90]
[377254339,1754306880777,-338.0,0.00045,90]
[377254340,1754306880805,-1960.3,0.00045204,120]
[377254341,1754306880836,-400.0,0.00045204,120]
[377254342,1754306880864,-677.08,0.00045204,120]
[377254343,1754306880892,-400.0,0.00045204,120]
[377254344,1754306880920,-568.52,0.00045204,120]
[377254345,1754306880948,-610.74,0.00045204,120]
[377254346,1754306880977,-545.64,0.00045204,120]
[377254347,1754306881004,-1452.31,0.00045204,120]
[377254348,1754306881031,-500.47,0.00045204,120]
[377254349,1754306881058,-984.57,0.00045204,120]
[377254350,1754306881084,-473.7,0.00045204,120]
[377254351,1754306881111,-549.01,0.00045204,120]
[377254352,1754306881137,-3867.33,0.00045204,120]
[377254353,1754306881166,-400.0,0.00045204,120]
[377254354,1754306881194,-400.0,0.00045478,120]
[377254355,1754306881221,-1960.3,0.00045478,120]
[377254356,1754306881248,-677.08,0.00045478,120]
[377254357,1754306881355,-400.0,0.00045478,120]
[377254358,1754306881385,-568.52,0.00045478,120]
[377254359,1754306881413,-610.74,0.00045478,120]
[377254360,1754306881441,-545.64,0.00045478,120]
[377254361,1754306881469,-1452.31,0.00045478,120]
[377254362,1754306881497,-500.47,0.00045478,120]
[377254363,1754306881525,-984.57,0.00045478,120]
[377254364,1754306881554,-473.7,0.00045478,120]
[377254365,1754306881585,-549.01,0.00045478,120]
[377254366,1754306881621,-3867.33,0.00045478,120]
[377254367,1754306881654,-400.0,0.00045478,120]
[377254368,1754306881684,-207.0,0.00045685,90]
[377254369,1754306881713,-338.0,0.00045685,90]
[377254370,1754306881742,-400.0,0.00045752,120]
[377254371,1754306881772,-1960.3,0.00045752,120]
[377254372,1754306881804,-448.80395067,0.00045752,120]
[377254373,1754306881835,-568.52,0.00045752,120]
[377254374,1754306881863,-677.08,0.00045752,120]
[377254375,1754306881892,-610.74,0.00045752,120]
[377254376,1754306881920,-545.64,0.00045752,120]
[377254377,1754306881949,-1452.31,0.00045752,120]
[377254378,1754306881978,-500.47,0.00045752,120]
[377254379,1754306882006,-984.57,0.00045752,120]
[377254380,1754306882034,-473.7,0.00045752,120]
[377254381,1754306882063,-549.01,0.00045752,120]
[377254382,1754306882090,-3867.33,0.00045752,120]
[377254383,1754306882118,-400.0,0.00045752,120]
[377254384,1754306882148,-400.0,0.00046026,120]
[377254385,1754306882176,-1960.3,0.00046026,120]
[377254386,1754306882203,-568.52,0.00046026,120]
[377254387,1754306882230,-677.08,0.00046026,120]
[377254388,1754306882257,-610.74,0.00046026,120]
[377254389,1754306882286,-545.64,0.00046026,120]
[377254390,1754306882313,-1452.31,0.00046026,120]
[377254391,1754306882341,-500.47,0.00046026,120]
[377254392,1754306882368,-984.57,0.00046026,120]
[377254393,1754306882396,-473.7,0.00046026,120]
[377254394,1754306882425,-549.01,0.00046026,120]
[377254395,1754306882452,-3867.33,0.00046026,120]
[377254396,1754306882479,-400.0,0.00046026,120]
[377254397,1754306882509,-400.0,0.000463,120]
[377254398,1754306882538,-1960.3,0.000463,120]
[377254399,1754306882567,-568.52,0.000463,120]
[377254400,1754306882599,-677.08,0.000463,120]
[377254401,1754306882627,-610.74,0.000463,120]
[377254402,1754306882658,-545.64,0.000463,120]
[377254403,1754306882691,-1452.31,0.000463,120]
[377254404,1754306882723,-500.47,0.000463,120]
[377254405,1754306882754,-984.57,0.000463,120]
[377254406,1754306882785,-549.01,0.000463,120]
[377254407,1754306882818,-473.7,0.000463,120]
[377254408,1754306882850,-3867.33,0.000463,120]
[377254409,1754306882882,-400.0,0.000463,120]
[377254410,1754306882914,-1706.99408,0.00046465,14]
[377254411,1754306882946,-302.00795106,0.00046574,120]
[377254412,1754306882977,-1960.3,0.00046574,120]
[377254413,1754306883008,-568.52,0.00046574,120]
[377254414,1754306883040,-677.08,0.00046574,120]
[377254415,1754306883071,-610.74,0.00046574,120]
[377254416,1754306883103,-545.64,0.00046574,120]
[377254417,1754306883135,-1452.31,0.00046574,120]
[377254418,1754306883166,-500.47,0.00046574,120]
[377254419,1754306883195,-984.57,0.00046574,120]
[377254420,1754306883224,-549.01,0.00046574,120]
[377254421,1754306883252,-473.7,0.00046574,120]
[377254422,1754306883282,-3867.33,0.00046574,120]
[377254423,1754306883311,-400.0,0.00046574,120]
[377254424,1754306883341,-1960.3,0.00046848,120]
[377254425,1754306883370,-568.52,0.00046848,120]
[377254426,1754306883399,-677.08,0.00046848,120]
[377254427,1754306883428,-610.74,0.00046848,120]
[377254428,1754306883458,-545.64,0.00046848,120]
[377254429,1754306883491,-1452.31,0.00046848,120]
[377254430,1754306883521,-500.47,0.00046848,120]
[377254431,1754306883552,-984.57,0.00046848,120]
[377254432,1754306883580,-549.01,0.00046848,120]
[377254433,1754306883616,-473.7,0.00046848,120]
[377254434,1754306883647,-400.0,0.00046848,120]
[377254435,1754306883678,-3867.33,0.00046848,120]
[377254436,1754306883711,-750.90828799,0.000471,30]
[377254437,1754306883743,-1960.3,0.00047122,120]
[377254438,1754306883774,-568.52,0.00047122,120]
[377254439,1754306883805,-677.08,0.00047122,120]
[377254440,1754306883836,-610.74,0.00047122,120]
[377254441,1754306883868,-545.64,0.00047122,120]
[377254442,1754306883903,-500.47,0.00047122,120]
[377254443,1754306883936,-1452.31,0.00047122,120]
[377254444,1754306883969,-984.57,0.00047122,120]
[377254445,1754306884002,-549.01,0.00047122,120]
[377254446,1754306884035,-473.7,0.00047122,120]
[377254447,1754306884067,-350.12690894,0.00047122,120]
[377254448,1754306884099,-3867.33,0.00047122,120]
[377254449,1754306884131,-1960.3,0.00047396,120]
[377254450,1754306884162,-568.52,0.00047396,120]
[377254451,1754306884194,-677.08,0.00047396,120]
[377254452,1754306884225,-610.74,0.00047396,120]
[377254453,1754306884256,-545.64,0.00047396,120]
[377254454,1754306884285,-500.47,0.00047396,120]
[377254455,1754306884316,-1452.31,0.00047396,120]
[377254456,1754306884345,-984.57,0.00047396,120]
[377254457,1754306884371,-549.01,0.00047396,120]
[377254458,1754306884398,-473.7,0.00047396,120]
[377254459,1754306884426,-3867.33,0.00047396,120]
[377254460,1754306884453,-1960.3,0.0004767,120]
[377254461,1754306884481,-568.52,0.0004767,120]
[377254462,1754306884508,-677.08,0.0004767,120]
[377254463,1754306884536,-545.64,0.0004767,120]
[377254464,1754306884563,-610.74,0.0004767,120]
[377254465,1754306884591,-500.47,0.0004767,120]
[377254466,1754306884619,-1452.31,0.0004767,120]
[377254467,1754306884648,-984.57,0.0004767,120]
[377254468,1754306884675,-549.01,0.0004767,120]